Cogmind - Beta 16.1 @@@ ROGUE MODE // 2026.04.02 @ 19:22:33 Player: konomiyu Result: Destroyed by Enhanced Grunt with Neutron Cannon Performance ------------- Evolutions (3) 1500 Regions Visited (13) 2600 Robots Destroyed (87) 435 Value Destroyed (2250) 2250 Prototype IDs (43) 860 Alien Tech Used (0) 0 Bonus (1087) 1087 TOTAL SCORE: 8732 Bonus ------- Follower Combat Kills 487 Aligned with FarCom 300 Met Data Miner 300 Cogmind --------- Core Integrity 0/700 Matter 254/300 Energy 99/100 System Corruption 0% Temperature Cool (0) Movement Core (50) Location -7/Data Miner Parts ------- > --- POWER (1) -------- (None) > --- PROPULSION (5) --- (None) > --- UTILITY (5) ------ Signal Interpreter Improved Terrain Scan Processor > --- WEAPON (2) ------- (None) > --- INVENTORY (5) ---- Improved Terrain Scanner Heavy Beamcaster Tearclaws Peak State ------------ > --- POWER ------------ Light Nuclear Core > --- PROPULSION ------- Advanced Treads Advanced Treads Improved Gravmag System Improved Antigrav System Improved Linear Gravjet > --- UTILITY ---------- Improved Heat Sink Large Storage Unit Improved Terrain Scanner Improved Terrain Scan Processor Modified TNC > --- WEAPON ----------- Heavy Beamcaster Heavy Flail > --- INVENTORY -------- Light Ion Engine Heavy Ion Engine Light Treads Light Treads Medium Storage Unit Signal Interpreter Seismic Detector Hacking Suite Advanced System Shield Heavy Particle Gun Heavy Beamcaster Heavy Beamcaster Mini Grenade Launcher Heavy Missile Launcher Improved Datajack [Rating: 57] Favorites ----------- Power Light Nuclear Core Engine Improved Ion Engine Power Core Light Nuclear Core Propulsion Light Treads Treads Light Treads Leg Aluminum Leg Wheel Wheel Hover Unit Improved Linear Gravjet Flight Unit Xenon Bombardment Thruster Utility Large Storage Unit Device Seismic Detector Storage Large Storage Unit Processor Improved Terrain Scan Processor Hackware Hacking Suite Protection Light Armor Plating Weapon Heavy Flail Energy Gun Heavy Beamcaster Launcher Mini Grenade Launcher Special Weapon Mining Laser Impact Weapon Heavy Flail Special Melee Weapon Datajack Build | -11 -10 -10 -9 -9 -9 -8 -8 -7 -7 -7 -7 -7 -7 ------- Run | Yrd Mat Min Mat Min Exi Min Mat Fac Was Fac Low Low Dat Slots Evolved 6 | . . . 2 . . . 2 2 . . . . . Power . | . . . . . . . . . . . . . . Propulsion 3 | . . . . . . . 1 2 . . . . . Utility 3 | . . . 2 . . . 1 . . . . . . Weapon . | . . . . . . . . . . . . . . Parts Attached 78 | 7 5 1 21 5 . . 17 1 5 7 2 5 2 Power 8 | 1 2 . 3 . . . 1 . . . . 1 . Engine 5 | 1 1 . 3 . . . . . . . . . . Core 3 | . 1 . . . . . 1 . . . . 1 . Reactor . | . . . . . . . . . . . . . . Propulsion 24 | 2 . . 6 2 . . 5 . 3 4 . 2 . Treads 13 | 2 . . 4 2 . . 5 . . . . . . Leg 1 | . . . 1 . . . . . . . . . . Wheel 1 | . . . . . . . . . . 1 . . . Hover 5 | . . . . . . . . . 3 2 . . . Flight 4 | . . . 1 . . . . . . 1 . 2 . Utility 22 | 2 2 1 6 1 . . 5 1 . 2 2 . . Device 11 | 1 . 1 3 1 . . 3 1 . . 1 . . Storage 4 | 1 2 . 1 . . . . . . . . . . Processor 3 | . . . . . . . 2 . . . 1 . . Hackware 3 | . . . 1 . . . . . . 2 . . . Protection 1 | . . . 1 . . . . . . . . . . Artifact . | . . . . . . . . . . . . . . Weapon 24 | 2 1 . 6 2 . . 6 . 2 1 . 2 2 Energy Gun 12 | 1 . . 2 1 . . 4 . 2 1 . 1 . Energy Cannon . | . . . . . . . . . . . . . . Ballistic Gun . | . . . . . . . . . . . . . . Ballistic Cannon . | . . . . . . . . . . . . . . Launcher 4 | . . . . 1 . . 1 . . . . 1 1 Special Weapon 3 | 1 . . 2 . . . . . . . . . . Impact Weapon 2 | . . . 1 . . . 1 . . . . . . Slashing Weapon . | . . . . . . . . . . . . . . Piercing Weapon . | . . . . . . . . . . . . . . Special Melee Weapon 3 | . 1 . 1 . . . . . . . . . 1 Unidentified Prototypes 4 | . . . 3 . . . . . . 1 . . . Parts Lost 42 | . 3 . 6 4 . 1 8 . . 3 . 8 9 Power 5 | . 1 . 1 . . . 1 . . . . 1 1 Propulsion 17 | . . . 3 2 . . 1 . . 3 . 5 3 Utility 6 | . . . . 1 . 1 2 . . . . . 2 Weapon 14 | . 2 . 2 1 . . 4 . . . . 2 3 Highest Loss Streak 9 | . 1 . 1 2 . 1 6 . . 1 . 8 9 To Critical Strikes . | . . . . . . . . . . . . . . Average Backups 13 | 4 8 10 13 13 14 15 14 15 14 14 15 12 12 Power 1 | . 1 2 1 2 2 2 1 2 2 2 2 1 . Propulsion 2 | 2 3 3 3 1 1 1 3 2 2 2 2 . . Utility 4 | . 1 2 4 5 6 7 4 5 4 4 5 4 3 Weapon 4 | 1 2 3 4 3 4 4 4 5 5 5 5 5 5 Tool/Special . | . . . . . . . . . . . . . . Unused Backups 14 | . . . 4 1 . . 2 . 2 1 . . 4 Power 1 | . . . . . . . . . . 1 . . . Propulsion 3 | . . . 2 . . . 1 . . . . . . Utility 1 | . . . . . . . . . . . . . 1 Weapon 7 | . . . 2 1 . . 1 . 2 . . . 1 Tool/Special 2 | . . . . . . . . . . . . . 2 Average Slot Usage (%) 88 | . 90 85 75 90 100 99 95 84 92 97 100 76 70 Engine 5 | . 7 . 9 11 11 11 7 . . . . . . Core 4 | . 6 14 1 . . . 1 7 7 7 7 6 5 Treads 20 | . 28 28 19 21 22 22 26 23 21 15 15 7 6 Hover 2 | . . . . . . . . . 9 16 15 1 . Flight 1 | . . . . . . . . . . . . 13 13 Device 12 | . 14 14 14 13 22 21 12 15 15 7 6 6 6 Storage 9 | . 14 14 11 11 11 11 9 7 7 7 7 7 6 Processor 8 | . . . . . . . 17 15 15 15 15 15 15 Hackware 4 | . . . 2 11 11 11 2 . . 6 7 7 6 Energy Gun 9 | . 14 14 11 11 11 10 7 7 6 5 7 5 6 Impact Weapon 4 | . . . . 11 1 11 8 7 7 7 7 . . Peak Build Rating 57 | 7 10 9 19 19 19 19 38 39 57 55 49 47 36 Average Rating 25 | 4 7 9 11 17 18 18 32 38 48 49 48 32 31 On Entrance 25 | . 7 9 9 19 19 19 16 38 38 52 49 47 34 Avg Prop Armor Cover (%) 19 | . . . 9 . . . 7 . 7 23 27 15 14 Naked Turns . | . . . . . . . . . . . . . . Heaviest Build 37 | 14 29 28 35 34 34 34 37 33 35 34 34 36 34 Greatest Support 68 | 40 40 40 40 40 40 40 68 66 66 66 10 22 11 Greatest Overweight (x) 5 | . . . 1 1 . . . . . 3 3 3 5 Average Overweight (x) . | . . . . . . . . . . 1 3 1 1 Largest Inventory Capacity 15 | 8 15 15 15 15 15 15 15 15 15 15 15 15 15 Average Capacity 14 | 7 11 15 15 15 15 15 15 15 15 15 15 15 13 Most Carried 15 | 6 10 11 15 15 15 15 15 15 15 15 15 15 15 Average Carried 13 | 4 8 10 13 13 14 15 14 14 14 14 15 13 13 Final Capacity 15 | 8 15 15 15 15 15 15 15 15 15 15 15 15 5 Final Carried 15 | 6 10 11 15 14 15 15 15 15 15 15 15 15 4 Class Distribution -------------------- 36% | Mutant 30% | Assassin 28% | Scavenger-Mutant Dominant Class ---------------- Mutant | -10/Materials Mutant | -10/Mines Scavenger-Mutant | -9/Materials Scavenger-Mutant | -9/Mines Scavenger-Mutant | -9/Exiles Scavenger-Mutant | -8/Mines Assassin | -8/Materials Assassin | -7/Factory Assassin | -7/Waste Assassin | -7/Factory Assassin | -7/Lower Caves Mutant | -7/Lower Caves Mutant | -7/Data Miner Resources | -11 -10 -10 -9 -9 -9 -8 -8 -7 -7 -7 -7 -7 -7 ----------- Run | Yrd Mat Min Mat Min Exi Min Mat Fac Was Fac Low Low Dat Matter Collected 1405 | 165 160 44 260 55 . 45 297 . 40 130 30 179 . Remotely . | . . . . . . . . . . . . . . Salvage Created 2951 | 59 596 26 875 281 . 80 783 . . 232 . 19 . Parts 167 | 6 35 2 40 23 . 5 42 . . 11 . 3 . Haulers Intercepted 6 | . 1 . 4 . . . 1 . . . . . . Recyclers Shooed 4 | . 2 . 2 . . . . . . . . . . Parts Field Recycled . | . . . . . . . . . . . . . . Retrieved Matter . | . . . . . . . . . . . . . . Parts Self-Destructed 3 | . . . . . . . . . . . . 3 . Prevented . | . . . . . . . . . . . . . . Parts Restored . | . . . . . . . . . . . . . . Kills | -11 -10 -10 -9 -9 -9 -8 -8 -7 -7 -7 -7 -7 -7 ------- Run | Yrd Mat Min Mat Min Exi Min Mat Fac Was Fac Low Low Dat Combat Hostiles Destroyed 53 | . 8 . 13 6 . 5 18 . . 2 . 1 . Melee 1 | . . . . . . . 1 . . . . . . Guns 39 | . 8 . 12 5 . 2 9 . . 2 . 1 . AOE 6 | . . . . . . 2 4 . . . . . . Classes Destroyed 13 | 1 6 . 2 1 . 1 1 . . . . 1 . Worker 4 | . 1 . . . . . 1 . . 2 . . . Builder 2 | . . . . . . . 1 . . 1 . . . Tunneler 10 | 3 1 1 1 4 . . . . . . . . . Hauler 6 | . 1 . 4 . . . 1 . . . . . . Recycler 3 | . 2 . . . . . . . . 1 . . . Operator 4 | . 2 . 1 . . . 1 . . . . . . Watcher 5 | . 2 . 2 . . . 1 . . . . . . Swarmer 14 | . . . 4 . . 4 6 . . . . . . Grunt 27 | . 8 . 3 5 . . 9 . . 2 . . . Sentry 9 | . . . 6 . . . 3 . . . . . . Demolisher 1 | . . . . 1 . . . . . . . . . Hunter 1 | . . . . . . 1 . . . . . . . Thief 1 | . . . . . . . . . . . . 1 . Best Kill Streak 4 | 2 2 1 4 2 . 4 4 . . 3 . 1 . Combat Bots Only 4 | . 2 . 4 2 . 4 4 . . 1 . 1 . Max Kills in Single Turn 3 | 1 1 1 1 1 . 2 3 . . 1 . 1 . Gunslinging . | . . . . . . . . . . . . . . Exploded 3 | . . . . . . 2 3 . . . . . . Melee 1 | . . . . . . . 1 . . . . . . Uniques/NPCs Destroyed . | . . . . . . . . . . . . . . Combat | -11 -10 -10 -9 -9 -9 -8 -8 -7 -7 -7 -7 -7 -7 -------- Run | Yrd Mat Min Mat Min Exi Min Mat Fac Was Fac Low Low Dat Hostile Shots Fired 376 | . 42 . 83 38 . 22 110 . . 6 . 42 33 Missed 106 | . 13 . 23 12 . 4 28 . . 1 . 9 16 Hits 270 | . 29 . 60 26 . 18 82 . . 5 . 33 17 Projectile 270 | . 29 . 60 26 . 18 82 . . 5 . 33 17 AOE 6 | . . . . 6 . . . . . . . . . Critical Strikes 9 | . 1 . 3 . . . 4 . . . . 1 . Damage Taken 5070 | . 418 . 776 516 . 240 1217 . . 507 . 564 832 Core 1215 | . 46 . 185 79 . 40 160 . . 143 . 104 458 Absorbed by Shields . | . . . . . . . . . . . . . . Regen/Repaired (Parts) 297 | . . . . . . . 133 . 141 23 . . . Core Remaining (%) 68 | 100 . 81 . . . 24 70 . . . . . . Volleys Fired 430 | 6 84 14 129 48 . 16 106 . . 14 . 8 5 Largest 2 | 1 1 1 2 1 . 1 1 . . 1 . 1 1 Hottest 156 | 50 100 50 156 56 . 56 69 . . 81 . 81 81 Shots Fired 432 | 6 84 14 131 48 . 16 106 . . 14 . 8 5 Gun 402 | 6 82 14 118 48 . 14 104 . . 14 . 1 1 Cannon . | . . . . . . . . . . . . . . Launcher 15 | . . . . . . 2 2 . . . . 7 4 Special 15 | . 2 . 13 . . . . . . . . . . Kinetic . | . . . . . . . . . . . . . . Thermal 417 | 6 84 14 131 48 . 14 104 . . 14 . 1 1 Explosive 15 | . . . . . . 2 2 . . . . 7 4 Electromagnetic . | . . . . . . . . . . . . . . Robot Hit Streak 16 | 5 9 4 16 14 . 5 14 . . 11 . 7 1 Robot Miss Streak 6 | 1 6 4 3 5 . 3 3 . . 1 . 1 2 Penetration Max . | . . . . . . . . . . . . . . Secondary Targets . | . . . . . . . . . . . . . . Shots Hit Robots 324 | 5 62 6 95 32 4 9 88 . . 15 . 6 2 Core Hits 141 | 3 35 1 32 12 . 3 36 . . 6 . 1 12 Critical Kills 1 | . . . . . . . 1 . . . . . . Critical Parts Destroyed . | . . . . . . . . . . . . . . Critical Strikes 35 | . 2 2 15 8 . 1 6 . . 1 . . . Burn 34 | . 2 2 15 8 . 1 5 . . 1 . . . Smash 1 | . . . . . . . 1 . . . . . . Melee Attacks 47 | . 1 . 7 1 4 . 23 4 . 7 . . . Impact 34 | . . . 1 1 . . 21 4 . 7 . . . Slashing . | . . . . . . . . . . . . . . Piercing . | . . . . . . . . . . . . . . Sneak Attacks 13 | . . . 2 . 4 . 4 . . 3 . . . Combat Hostiles . | . . . . . . . . . . . . . . Follow-up Attacks . | . . . . . . . . . . . . . . Damage Inflicted 6599 | 64 797 76 1399 573 . 298 1982 . . 547 . 288 575 Guns 4679 | 64 797 76 1399 532 . 153 1362 . . 274 . 22 . Cannons . | . . . . . . . . . . . . . . Explosions 1165 | . . . . . . 145 179 . . . . 266 575 Melee 755 | . . . . 41 . . 441 . . 273 . . . Ramming . | . . . . . . . . . . . . . . Kinetic . | . . . . . . . . . . . . . . Thermal 4679 | 64 797 76 1399 532 . 153 1362 . . 274 . 22 . Explosive 1165 | . . . . . . 145 179 . . . . 266 575 Electromagnetic . | . . . . . . . . . . . . . . Impact 755 | . . . . 41 . . 441 . . 273 . . . Slashing . | . . . . . . . . . . . . . . Piercing . | . . . . . . . . . . . . . . Highest Corruption 4 | . 4 4 . . . . . . . . . . . Average Corruption 3 | . 3 4 . . . . . . . . . . . Corruption Purged . | . . . . . . . . . . . . . . Corruption Blocked . | . . . . . . . . . . . . . . Effects 35 | . 22 13 . . . . . . . . . . . Message Errors 9 | . 8 1 . . . . . . . . . . . Matter Fused 5 | . 1 4 . . . . . . . . . . . Heat Flow Errors 6 | . 1 5 . . . . . . . . . . . Energy Discharges 4 | . 3 1 . . . . . . . . . . . Data Loss (minor) 5 | . 5 . . . . . . . . . . . . Data Loss (major) 5 | . 4 1 . . . . . . . . . . . Alerts 1 | . . 1 . . . . . . . . . . . Overload Shots . | . . . . . . . . . . . . . . Overflow Damage 346 | . . . . 28 . 59 154 . . 105 . . . Projectiles . | . . . . . . . . . . . . . . Explosions 81 | . . . . . . 59 22 . . . . . . Melee 265 | . . . . 28 . . 132 . . 105 . . . Knockbacks 2 | . . . . . . . 2 . . . . . . Impact 2 | . . . . . . . 2 . . . . . . Kinetic . | . . . . . . . . . . . . . . Secondary . | . . . . . . . . . . . . . . Self-Inflicted Damage 75 | . . . . . . 46 . . . . . . 29 Shots 2 | . . . . . . 1 . . . . . . 1 Rammed 1 | . . . 1 . . . . . . . . . . Targets Rammed 1 | . . . 1 . . . . . . . . . . Kicked . | . . . . . . . . . . . . . . Crushed . | . . . . . . . . . . . . . . Highest Temperature 313 | 30 182 290 122 4 . 78 176 . . 166 . 313 32 Average Temperature 49 | 13 43 107 31 1 . 41 47 . . 55 . 135 19 Received Heat Transfer 1814 | . 228 . 303 171 . . 675 . . 45 . 392 . Effects 2 | . . 2 . . . . . . . . . . . Interference 2 | . . 2 . . . . . . . . . . . Siege Activations . | . . . . . . . . . . . . . . Martial Activations . | . . . . . . . . . . . . . . Shielding Activations . | . . . . . . . . . . . . . . Robots Disrupted . | . . . . . . . . . . . . . . Combat Hostiles . | . . . . . . . . . . . . . . Robots Corrupted 3 | . . . . 1 . . 2 . . . . . . Combat Hostiles 2 | . . . . 1 . . 1 . . . . . . Parts Fried 1 | . . . . . . . 1 . . . . . . Impact Corruptions 8 | . . . . 1 . . 5 . . 2 . . . Robots Melted 6 | . . . 2 . . 1 3 . . . . . . Combat Hostiles 5 | . . . 1 . . 1 3 . . . . . . Parts Melted 25 | . 3 . 14 1 . 3 4 . . . . . . Heat Transferred 13542 | 185 2479 370 4477 1739 . 407 3330 . . 518 . 37 . Parts Sabotaged . | . . . . . . . . . . . . . . Parts Stolen . | . . . . . . . . . . . . . . Parts Stripped . | . . . . . . . . . . . . . . Power Chain Reactions . | . . . . . . . . . . . . . . Alert | -11 -10 -10 -9 -9 -9 -8 -8 -7 -7 -7 -7 -7 -7 ------- Run | Yrd Mat Min Mat Min Exi Min Mat Fac Was Fac Low Low Dat Maximum Alert Level 2 | . . . . . . . . . . 2 . . . Low Security (%) 95 | 100 100 100 100 100 . 100 100 100 100 55 . . . Level 1 2 | . . . . . . . . . . 23 . . . Level 2 2 | . . . . . . . . . . 20 . . . Level 3 . | . . . . . . . . . . . . . . Level 4 . | . . . . . . . . . . . . . . Level 5 . | . . . . . . . . . . . . . . High Security . | . . . . . . . . . . . . . . Max Security . | . . . . . . . . . . . . . . Peak Influence 524 | 5 64 13 135 57 . 94 146 36 . 524 . . . Initial 47 | . . 13 . 47 . . 30 36 . . . . . Average 53 | 1 15 . 57 9 . 29 51 3 . 248 . . . Influence Increases 3253 | 15 311 5 578 175 . 326 669 4 . 1095 60 15 . Destroy 0b10 Robot/C 1500 | . 160 . 260 120 . 220 360 . . 380 . . . Destroy 0b10 Robot/NC 195 | 15 45 5 55 20 . . 25 . . 30 . . . Destroy Leader 382 | . 56 . 102 20 . 40 64 . . 100 . . . Allied During Kill 336 | . . . . . . 15 . . . 321 . . . Successful Hack 121 | . 17 . 28 . . . 51 . . 25 . . . Select Force Hacks 30 | . . . . . . . . . . 30 . . . Disable Machine 105 | . . . 15 . . . 75 . . 15 . . . Anti-Garrison Action 150 | . . . . . . . . . . 150 . . . Destroy Structure 119 | . 3 . 13 . . 21 34 4 . 44 . . . Partial Spotted 15 | . . . 15 . . . . . . . . . . Lose Combat Pursuer 300 | . 30 . 90 15 . 30 60 . . . 60 15 . Influence Decreases 3253 | 15 276 40 456 297 . 247 667 85 . 732 423 15 . Entered New Map 326 | . . 22 . 75 . . 49 45 . . 135 . . Time Decay 2400 | 15 259 18 426 192 . 237 468 40 . 442 288 15 . Lost Part 177 | . 17 . 30 30 . 10 60 . . 30 . . . Lost Ally 260 | . . . . . . . . . . 260 . . . Purge Threat 90 | . . . . . . . 90 . . . . . . Squads Dispatched 22 | . 2 . 3 . . . 2 . . 15 . . . Investigation 10 | . . . 3 . . . 1 . . 6 . . . Extermination 3 | . . . . . . . . . . 3 . . . Reinforcement 6 | . 2 . . . . . 1 . . 3 . . . Assault 2 | . . . . . . . . . . 2 . . . Garrison 1 | . . . . . . . . . . 1 . . . Intercept . | . . . . . . . . . . . . . . Searches Triggered . | . . . . . . . . . . . . . . Construction Impeded 1 | . . . . . . . . . . 1 . . . Haulers Reinforced . | . . . . . . . . . . . . . . Active Scanning Responses . | . . . . . . . . . . . . . . Cargo Convoy Interrupts . | . . . . . . . . . . . . . . Stealth | -11 -10 -10 -9 -9 -9 -8 -8 -7 -7 -7 -7 -7 -7 --------- Run | Yrd Mat Min Mat Min Exi Min Mat Fac Was Fac Low Low Dat Distress Signals 7 | . . . 3 . . . 4 . . . . . . Communications Jammed . | . . . . . . . . . . . . . . Distress Signals . | . . . . . . . . . . . . . . Times Spotted 125 | . 20 . 33 10 . 8 38 . . 5 1 2 8 Peak Tracking Total 5 | . 2 . 4 3 . 3 5 . . 3 4 1 4 Tactical Retreats 14 | . 2 . 4 1 . 1 3 . . . 2 1 . Traps | -11 -10 -10 -9 -9 -9 -8 -8 -7 -7 -7 -7 -7 -7 ------- Run | Yrd Mat Min Mat Min Exi Min Mat Fac Was Fac Low Low Dat Traps Triggered 9 | . 3 . 2 . . . . 1 . 3 . . . Indirectly . | . . . . . . . . . . . . . . Trap Hack Attempts 14 | . 7 . 6 . . . 1 . . . . . . Triggered . | . . . . . . . . . . . . . . Disarmed 1 | . . . . . . . 1 . . . . . . Reprogrammed 1 | . . . 1 . . . . . . . . . . Reused . | . . . . . . . . . . . . . . Traps Extracted . | . . . . . . . . . . . . . . Installed . | . . . . . . . . . . . . . . Triggered . | . . . . . . . . . . . . . . Machines | -11 -10 -10 -9 -9 -9 -8 -8 -7 -7 -7 -7 -7 -7 ---------- Run | Yrd Mat Min Mat Min Exi Min Mat Fac Was Fac Low Low Dat Machines Disabled 9 | . . . 1 . . . 5 . . 2 . . 1 Max in Single Turn 2 | . . . 1 . . . 2 . . 1 . . 1 Garrison Access 2 | . . . . . . . 1 . . 1 . . . Machines Repaired . | . . . . . . . . . . . . . . Machines Dismantled . | . . . . . . . . . . . . . . Machines Sabotaged . | . . . . . . . . . . . . . . Overloaded Fab Kills . | . . . . . . . . . . . . . . Hacking | -11 -10 -10 -9 -9 -9 -8 -8 -7 -7 -7 -7 -7 -7 --------- Run | Yrd Mat Min Mat Min Exi Min Mat Fac Was Fac Low Low Dat Machines Accessed 39 | . 6 . 9 . 3 . 10 . . 10 1 . . Terminals 27 | . 6 . 9 . . . 7 . . 5 . . . Fabricators 4 | . . . . . . . . . . 4 . . . Repair Stations 1 | . . . . . . . 1 . . . . . . Recycling Units 1 | . . . . . . . . . . 1 . . . Scanalyzers 1 | . . . . . . . 1 . . . . . . Garrison Access 1 | . . . . . . . 1 . . . . . . Total Hacks 87 | . 13 . 17 . 6 . 27 . . 23 1 . . Successful 41 | . 5 . 7 . 6 . 12 . . 10 1 . . Failed 46 | . 8 . 10 . . . 15 . . 13 . . . Catastrophic 16 | . 3 . 6 . . . 6 . . 1 . . . Database Lockouts . | . . . . . . . . . . . . . . Manual 50 | . 9 . 15 . 1 . 17 . . 8 . . . Terminals 58 | . 13 . 17 . . . 17 . . 11 . . . Fabricators 10 | . . . . . . . . . . 10 . . . Repair Stations 2 | . . . . . . . 2 . . . . . . Recycling Units 2 | . . . . . . . . . . 2 . . . Scanalyzers 5 | . . . . . . . 5 . . . . . . Garrison Access 3 | . . . . . . . 3 . . . . . . Terminal Hacks 26 | . 4 . 6 . 6 . 5 . . 4 1 . . Record 6 | . . . . . 5 . . . . . 1 . . Part Schematic 2 | . . . . . . . . . . 2 . . . Robot Analysis 4 | . 2 . 1 . . . . . . 1 . . . Level Access Points 2 | . . . 1 . . . 1 . . . . . . Branch Access Points 3 | . . . 1 . . . 1 . . 1 . . . Terminal Index 1 | . . . 1 . . . . . . . . . . Unreport Threat 1 | . . . . . . . 1 . . . . . . Dispatch Records 1 | . . . . . . . 1 . . . . . . Recall Investigation 3 | . . . 2 . . . 1 . . . . . . Hauler Manifests 1 | . 1 . . . . . . . . . . . . Registered Components 1 | . 1 . . . . . . . . . . . . Proto ID Catalog 1 | . . . . . 1 . . . . . . . . Fabricator Hacks 4 | . . . . . . . . . . 4 . . . Load Schematic 3 | . . . . . . . . . . 3 . . . Build 1 | . . . . . . . . . . 1 . . . Repair Station Hacks 2 | . . . . . . . 2 . . . . . . Scan Component 1 | . . . . . . . 1 . . . . . . Repair 1 | . . . . . . . 1 . . . . . . Recycling Unit Hacks . | . . . . . . . . . . . . . . Scanalyzer 3 | . . . . . . . 3 . . . . . . Insert Component 3 | . . . . . . . 3 . . . . . . Garrison Access Hacks 1 | . . . . . . . 1 . . . . . . Seal Access 1 | . . . . . . . 1 . . . . . . Unauthorized Hacks 5 | . 1 . 1 . . . 1 . . 2 . . . Terminals 3 | . 1 . 1 . . . 1 . . . . . . Operators 3 | . 1 . 1 . . . 1 . . . . . . Fabricators 1 | . . . . . . . . . . 1 . . . Report 1 | . . . . . . . . . . 1 . . . Repair Stations . | . . . . . . . . . . . . . . Recycling Units 1 | . . . . . . . . . . 1 . . . Tunnel 1 | . . . . . . . . . . 1 . . . Scanalyzers . | . . . . . . . . . . . . . . Garrison Access . | . . . . . . . . . . . . . . Data Cores Recovered . | . . . . . . . . . . . . . . Used . | . . . . . . . . . . . . . . Hacking Detections 31 | . 6 . 8 . . . 8 . . 9 . . . Full Trace Events 8 | . 1 . 2 . . . 1 . . 4 . . . Feedback Events . | . . . . . . . . . . . . . . Feedback Blocked . | . . . . . . . . . . . . . . Robot Schematics Acquired . | . . . . . . . . . . . . . . Robots Built . | . . . . . . . . . . . . . . Authchips . | . . . . . . . . . . . . . . Time . | . . . . . . . . . . . . . . Total Robot Build Rating . | . . . . . . . . . . . . . . Part Schematics Acquired 2 | . . . . . . . . . . 2 . . . Parts Built 1 | . . . . . . . . . . 1 . . . Authchips . | . . . . . . . . . . . . . . Time 73 | . . . . . . . . . . 73 . . . Total Part Build Rating 3 | . . . . . . . . . . 3 . . . Part Studies Acquired . | . . . . . . . . . . . . . . Parts Repaired 1 | . . . . . . . 1 . . . . . . Time 26 | . . . . . . . 26 . . . . . . Parts Recycled . | . . . . . . . . . . . . . . Recycled Matter . | . . . . . . . . . . . . . . Retrieved Matter . | . . . . . . . . . . . . . . Retrieved Components . | . . . . . . . . . . . . . . Parts Scanalyzed 1 | . . . . . . . 1 . . . . . . Part Schematics Acquired . | . . . . . . . . . . . . . . Parts Damaged 1 | . . . . . . . 1 . . . . . . Bothacking | -11 -10 -10 -9 -9 -9 -8 -8 -7 -7 -7 -7 -7 -7 ------------ Run | Yrd Mat Min Mat Min Exi Min Mat Fac Was Fac Low Low Dat Used RIF Installer . | . . . . . . . . . . . . . . Robots Hacked 8 | . 1 . 2 . 4 . 1 . . . . . . Non-combat 6 | . . . 2 . 3 . 1 . . . . . . Combat 2 | . 1 . . . 1 . . . . . . . . Robot Hacks Applied 9 | . 1 . 2 . 4 . 2 . . . . . . parse_system 7 | . 1 . 2 . 4 . . . . . . . . no_distress 1 | . . . . . . . 1 . . . . . . check_alert 1 | . . . . . . . 1 . . . . . . Relay Couplers Released 3 | . . . . . . . . . . 3 . . . Machine Destruction 3 | . . . . . . . . . . 3 . . . Fabnet Peak Effective % . | . . . . . . . . . . . . . . Robots Rewired . | . . . . . . . . . . . . . . Allies Hacked . | . . . . . . . . . . . . . . Hacks Repelled . | . . . . . . . . . . . . . . Allies | -11 -10 -10 -9 -9 -9 -8 -8 -7 -7 -7 -7 -7 -7 -------- Run | Yrd Mat Min Mat Min Exi Min Mat Fac Was Fac Low Low Dat Total Allies 23 | . . . . 3 . . . . 20 . . . . Largest Group 20 | . . . . 3 3 3 . . 20 20 . . . Highest-Rated Group 510 | . . . . 40 40 40 . . 510 510 . . . Highest-Rated Ally 35 | . . . . 16 16 16 . . 35 35 . . . Total Orders . | . . . . . . . . . . . . . . Ally Attacks 181 | . . . . . . 29 . . . 152 . . . Total Damage 2612 | . . . . . . 238 . . . 2374 . . . Kills 25 | . . . . . . 6 . . . 19 . . . Allies Corrupted . | . . . . . . . . . . . . . . Allies Melted . | . . . . . . . . . . . . . . Intel | -11 -10 -10 -9 -9 -9 -8 -8 -7 -7 -7 -7 -7 -7 ------- Run | Yrd Mat Min Mat Min Exi Min Mat Fac Was Fac Low Low Dat Active Infowar (turns) 14030 | 22 1486 646 2443 258 513 819 2566 476 563 1124 889 2095 130 Terrain 5409 | . . . 193 . . . 2498 474 563 1124 557 . . Seismic 8609 | 22 1486 646 2443 258 513 819 1 . . . 265 2026 130 T.N.C. 5586 | . . . . . . . 2525 476 563 1124 889 9 . ECM 61 | . . . . . . . . . . . 1 60 . Robot Analysis Total 4 | . 2 . 1 . . . . . . 1 . . . Derelict Logs Recovered 4 | . . 2 . 2 . . . . . . . . . Drone Launches . | . . . . . . . . . . . . . . Drone Recoveries . | . . . . . . . . . . . . . . Exploration | -11 -10 -10 -9 -9 -9 -8 -8 -7 -7 -7 -7 -7 -7 ------------- Run | Yrd Mat Min Mat Min Exi Min Mat Fac Was Fac Low Low Dat Turns Passed 14982 | 115 1486 705 2443 1051 513 819 2566 476 563 1124 889 2095 137 Spaces Moved 8145 | 57 724 423 1179 576 315 464 1283 197 397 800 659 998 73 Core 7 | 3 . . . . . . . . . . . . 4 Treads 5749 | 54 724 423 1179 576 315 464 1283 197 322 128 . 84 . Legs . | . . . . . . . . . . . . . . Wheels 1184 | . . . . . . . . . . 415 659 110 . Hover 334 | . . . . . . . . . 75 257 . 2 . Flight 871 | . . . . . . . . . . . . 802 69 Fastest Speed 40 | 50 160 160 160 160 160 160 145 145 85 85 125 125 40 Average Speed 158 | 154 160 160 171 160 160 160 154 145 133 127 125 201 168 Slowest Speed 460 | 160 160 160 240 240 160 160 160 145 145 225 125 225 460 Overloaded Moves . | . . . . . . . . . . . . . . Propulsion Burnouts . | . . . . . . . . . . . . . . Robots Hopped . | . . . . . . . . . . . . . . Potential Cave-ins 1 | . . . . . . . . . . . . . 1 Cave-ins Triggered . | . . . . . . . . . . . . . . Exploration Rate (%) 63 | 4 76 85 89 74 58 69 68 5 97 26 67 92 74 Regions Visited 13 Branch Regions 7 Pre-discovered Areas 4 | . . 1 . 1 1 . . . . 1 . . . Known Exits Taken 6 | . . . 1 . . 1 1 . . 1 1 1 . Unknown Exits Taken 5 | 1 1 1 . 1 1 . . . . . . . . Scrap Searched 9 | . . 1 . 2 . . . . . . 2 4 . Spaces Dug 30 | . 2 . 12 . . . 9 4 . 3 . . . Terrain Destroyed 162 | . 2 . 12 . . 29 49 4 . 3 . 29 34 Melee 17 | . . . 1 . . . 9 4 . 3 . . . Projectile 13 | . 2 . 11 . . . . . . . . . . AOE 132 | . . . . . . 29 40 . . . . 29 34 Terrain Rammed . | . . . . . . . . . . . . . . Walls Destroyed . | . . . . . . . . . . . . . . Machines Disabled . | . . . . . . . . . . . . . . Actions | -11 -10 -10 -9 -9 -9 -8 -8 -7 -7 -7 -7 -7 -7 --------- Run | Yrd Mat Min Mat Min Exi Min Mat Fac Was Fac Low Low Dat Total 9708 | 75 964 437 1436 654 321 524 1727 382 429 879 724 1074 82 Wait 858 | . 137 . 61 20 . 43 268 177 16 21 60 55 . Move 8133 | 56 723 422 1178 575 314 463 1282 197 396 799 658 997 73 Hop . | . . . . . . . . . . . . . . Pick Up 50 | 6 5 . 12 3 1 . 8 1 4 5 1 4 . Fast Attach 25 | 7 . . 9 1 . . 4 . 2 1 . 1 . Attach 28 | . 2 . 5 3 . . 9 . . 3 . 4 2 Detach 5 | . . . 4 . . . . . 1 . . . . Swap 61 | . 3 1 13 2 2 2 17 2 3 7 4 5 . Drop 34 | . 2 . 11 1 . . 9 1 5 2 1 . 2 Fire 430 | 6 84 14 129 48 . 16 106 . . 14 . 8 5 Melee 47 | . 1 . 7 1 4 . 23 4 . 7 . . . Ram . | . . . . . . . . . . . . . . Kick . | . . . . . . . . . . . . . . Crush 1 | . . . 1 . . . . . . . . . . Escape Stasis 20 | . . . . . . . . . . 20 . . . Rewire 2 | . . . . . . . . . 2 . . . . Trap 14 | . 7 . 6 . . . 1 . . . . . . Miscellaneous . | . . . . . . . . . . . . . . Route ------- -11/Scrapyard -10/Materials (discovered 4 exits: *Mat x2 / [*Min] / [*Sub]) -10/Mines -9/Materials (discovered 5 exits: *Mat x3 / *Min / *Sto) -9/Mines -9/Exiles -8/Mines -8/Materials (discovered 3 exits: *Fac x3) -7/Factory -7/Waste -7/Factory (discovered 4 exits: [*Fac x2] / *Low x2) -7/Lower Caves -7/Lower Caves -7/Data Miner (discovered 1 exit: *Pro) History --------- Turn | Location | Event 29 | -11/Scrapyard | Discovered new exit (range 16) 116 | -11/Scrapyard | Entered Materials 315 | -10/Materials | Build established: Mutant 506 | -10/Materials | Discovered new exit (range 9) 1003 | -10/Materials | Discovered new exit (range 15) 1433 | -10/Materials | Discovered new exit (range 16) 1581 | -10/Materials | Discovered new exit (range 11) 1602 | -10/Materials | Entered Mines 1613 | -10/Mines | Met a Derelict bent on vengeance 2046 | -10/Mines | Discovered new exit (range 5) 2307 | -10/Mines | Entered Materials 2307 | -9/Materials | Evolved 2 slots: Utility x2 3292 | -9/Materials | Build established: Scavenger-Mutant 3414 | -9/Materials | Identified exit to Mines 3414 | -9/Materials | Identified exit to Storage 3944 | -9/Materials | Discovered new exit (range 4) 4375 | -9/Materials | Identified exit to Materials 4750 | -9/Materials | Entered Mines 4772 | -9/Mines | Assembled infested the area 4777 | -9/Mines | Assisted by a Guerilla fighting off Assembled 4814 | -9/Mines | Core integrity fell below 50% 4966 | -9/Mines | Learned location of Zion (-6) 5139 | -9/Mines | Learned Materials terminal intel 5404 | -9/Mines | Assisted by bots powering up and referring to "LRC-V3" 5791 | -9/Mines | Deemed a non-threat by the Exiles lab entrance 5793 | -9/Mines | Discovered new exit (range 5) 5801 | -9/Mines | Entered Exiles 5801 | -9/Exiles | Accompanied by 3 allies 5841 | -9/Exiles | Met 8R-AWN 5869 | -9/Exiles | Met EX-HEX 5968 | -9/Exiles | Met EX-DEC 6046 | -9/Exiles | Met EX-BIN 6075 | -9/Exiles | Aligned with FarCom system 6076 | -9/Exiles | Given EX-Vault access code 6115 | -9/Exiles | Opened EX-Vault 6131 | -9/Exiles | Found Modified TNC 6176 | -9/Exiles | Warned to stay clear of 0b10 Research branches 6292 | -9/Exiles | Discovered new exit (range 15) 6314 | -9/Exiles | Left Exiles lab with Modified TNC 6314 | -9/Exiles | Entered Mines 6314 | -8/Mines | Accompanied by 3 allies 7095 | -8/Mines | Discovered exit to Materials (range 6) 7133 | -8/Mines | Entered Materials 7133 | -8/Materials | Evolved 2 slots: Propulsion x1, Utility x1 7134 | -8/Materials | Loaded intel: 12 terminal locations 7227 | -8/Materials | Repaired Lgt. Treads 7679 | -8/Materials | Identified exit to Factory 7709 | -8/Materials | Build established: Assassin 8200 | -8/Materials | Lost 6 parts (1p1u4w) 9699 | -8/Materials | Entered Factory 9699 | -7/Factory | Evolved 2 slots: Propulsion x2 10175 | -7/Factory | Sucked down chute 10175 | -7/Factory | Entered Waste 10176 | -7/Waste | Joined by Warlord forces that had cleared the area 10530 | -7/Waste | Discovered new exit (range 16) 10738 | -7/Waste | Entered Factory 10738 | -7/Factory | Accompanied by 20 allies 10882 | -7/Factory | Lost 5 allies 10955 | -7/Factory | Build established: Scout 11090 | -7/Factory | Discovered new exit (range 12) 11170 | -7/Factory | Fabricated Hacking Suite (x1) 11338 | -7/Factory | Discovered new exit (range 16) 11458 | -7/Factory | Build established: Assassin 11472 | -7/Factory | Identified exit to Lower Caves 11730 | -7/Factory | Lost 3 allies 11862 | -7/Factory | Discovered new exit (range 15) 11862 | -7/Factory | Entered Lower Caves 12177 | -7/Lower Caves | Encountered a Warlord checkpoint 12406 | -7/Lower Caves | Entered a destroyed Warlord outpost 12590 | -7/Lower Caves | Discovered new exit (range 9) 12686 | -7/Lower Caves | Identified exit to Lower Caves 12706 | -7/Lower Caves | Build established: Mutant 12751 | -7/Lower Caves | Entered another Lower Caves area 12891 | -7/Lower Caves | Spotted B-75 Beast 12955 | -7/Lower Caves | Lost 8 parts (1p5n2w) 13710 | -7/Lower Caves | Encountered a Warlord checkpoint 14300 | -7/Lower Caves | Discovered new exit (range 3) 14309 | -7/Lower Caves | Identified exit to Data Miner 14846 | -7/Lower Caves | Entered Data Miner 14846 | -7/Data Miner | Discovered new exit (range 8) 14866 | -7/Data Miner | Identified exit to Proximity Caves 14911 | -7/Data Miner | Met Data Miner 14942 | -7/Data Miner | Data Conduit disabled 14961 | -7/Data Miner | Core integrity fell below 50% 14982 | -7/Data Miner | Core integrity fell below 20% 14983 | -7/Data Miner | Destroyed by Enhanced Grunt with Neutron Cannon Last Messages --------------- your way because masking your presence is increasingly difficult. [Achievement: The Oracle] 14942_ Data Conduit disabled. 14942_ Data Miner disappears through a trap door. 14956_ Cesium-ion Thruster destroyed. 14957_ ORACLE Interface goes dark. 14959_ Nuclear Core destroyed. 14961_ Adv. Treads destroyed. 14961_ Hacking Suite destroyed. 14961_ Imp. Datajack destroyed. 14963_ Dropped Hvy. Particle Gun. 14963_ Dropped Lrg. Storage Unit. 14976_ Hvy. Missile Launcher destroyed. 14976_ Seismic Detector destroyed. 14979_ Hvy. Beamcaster destroyed. 14979_ Enhanced Grunt destroyed. 14981_ Xenon Bombardment Thruster destroyed. [Achievement: Just Browsing] Map ----- +----------------------------------------------------+ | | | | | | | | | | | | | | | | | | | ?????????????????????????????????????? | | ?????????????????????????????????????? | | ?????????????????????????????????????? | | ?????????????????????????????????????? | | ?????????????????????????????????????# | | ??????###############??????????????### | | ??????""""""""""""""######?#??????## | | ?????"""""""" """"""""# ######## > | | ????""""""""" | | ????"""""" | | ????"""""" | | ????""""" | | ????""""" | | ????"""""" """""""""""""" | | ????""""""" """############ | | ?????"""""" g ##??????????? | | ?????""""""" @ !%g #????????????? | | ??????######"; [[g] #????????????? | | ???????????#"; / ###????????????? | | ???????????#"# ##??????????????? | | ???????????#"# ##??????????????? | | ???????????#"# #??????????????? | | ???????????#"# #??????????????? | | ???????????#"# #??????????????? | | ?????????????## #??????????????? | | ??????????????# #??????????????? | | ??????????????# #??????????????? | | ?????????????#" " #??????????????? | | ???????????"""" ";#??????????????? | | ???????????"""" X""""?????????????? | | ???????????#"#"X "##"#????????????? | | ???????????#"## X""?"#????????????? | | ??????????????## "##??????????????? | | ???????????????#######???????????????? | | ?????????????????????????????????????? | | ?????????????????????????????????????? | | ?????????????????????????????????????? | | ?????????????????????????????????????? | | ?????????????????????????????????????? | | ?????????????????????????????????????? | | ?????????????????????????????????????? | +----------------------------------------------------+ Best States ------------- Heat Dissipation 48 Energy Generation 14 Energy Capacity 280 Matter Stores 300 Matter Capacity 300 Sight Range 16 Terrain Scan Range 16 Terrain Scan Density 110 ECM Strength 2 Armor Coverage 150 Evasion (%) 62 Recoil Reduction 3 Offensive Hacking 10 Item Schematics ----------------- Hacking Suite | -7/Factory | Hacked Imp. Cesium-ion Thruster | -7/Factory | Hacked Robot Schematics ------------------ None Fabricated ------------ Hacking Suite | x1 | -7/Factory Repaired ---------- Lgt. Treads | 5% | -8/Materials Studied --------- None Alien Tech Used ----------------- None Achievements -------------- Insider Info Just Browsing The Oracle We Are Legion Challenges ------------ None Game ------ Seed CoreChargeShredder Manual? 0 Play Time 01:50:19 Cumulative 39.0 hours Start 2026.04.02 @ 17:26:25 End 2026.04.02 @ 19:22:33 Sessions 4 Manual Loads 0 Difficulty Rogue Special Mode None Game No. 41 Rogue 41 Adventurer 0 Explorer 0 Win Type - Total 0 Types 0/0/0/0/0/0/0/0/0/0 Lore% 32 Gallery% 25 Achievement% 20 Wizard Run 0 Options --------- Layout 1 ASCII 0 Keyboard 1 Movement Vi Keybinds 0 Fullscreen 2 Font 24/Smallcaps Map View 50x35 Zoom Use 0% Tactical HUD 1 Map Filters NONE Filters NONE Steam 1 RUN: 04e4ec8a-5c88-44f2-ac09-54d847f70769